bitfinex/quotes_ETHUSD_20240711
["timestamp","ask_amount","ask_price","bid_price","bid_amount"]
[1720677292148,0.52024499,3107.1,3106.4,0.838]
[1720677292341,2.02726633,3106.6,3106.4,0.838]
[1720677292549,0.98653255,3106.5,3106.4,0.838]
[1720677293657,0.98653255,3106.5,3106.2,0.838]
[1720677293954,0.55,3106.4,3106.2,0.838]
[1720677294126,0.98653255,3106.3,3106.2,0.838]
[1720677294320,1.53653255,3106.3,3106.2,0.838]
[1720677294925,1.53663286,3106.3,3106.2,0.838]
[1720677295433,0.55,3106.3,3106.2,0.838]
[1720677295658,0.55,3106.4,3106.2,0.838]
[1720677295958,0.98663976,3106.3,3106.2,0.838]
[1720677296130,0.55,3106.3,3106.2,0.838]
[1720677296655,1.53664393,3106.3,3106.2,0.838]
[1720677297250,1.53664393,3106.3,3106.0,0.838]
[1720677297251,3.56383518,3106.3,3106.0,0.838]
[1720677297487,1.53664393,3106.2,3106.0,0.838]
[1720677297755,1.39802745,3106.1,3106.0,0.838]
[1720677297961,1.94802745,3106.1,3106.0,0.838]
[1720677298173,0.55,3106.1,3106.0,0.838]
[1720677298461,0.98673407,3106.1,3106.0,0.838]
[1720677298662,1.53674841,3106.1,3106.0,0.838]
[1720677300773,0.55,3106.1,3106.0,0.838]
[1720677300924,0.55,3106.3,3106.0,0.838]
[1720677301135,3.0141673,3106.2,3106.0,0.838]
[1720677301337,1.34318099,3106.1,3106.0,0.838]
[1720677301544,1.89318099,3106.1,3106.0,0.838]
[1720677302545,2.4304,3106.7,3106.0,0.838]
[1720677302546,2.02740304,3106.4,3106.0,0.838]
[1720677302711,0.9866548,3106.3,3106.2,0.838]
[1720677302857,1.5366548,3106.3,3106.2,0.838]
[1720677303055,3.56405784,3106.3,3106.2,0.838]
[1720677303664,6.30156362,3106.3,3106.0,0.838]
[1720677303864,1.5366548,3106.2,3106.0,0.838]
[1720677304159,0.98673438,3106.1,3106.0,0.838]
[1720677304353,1.53673438,3106.1,3106.0,0.838]
[1720677304662,0.55,3106.1,3106.0,0.838]
[1720677304862,4.74636034,3106.6,3106.0,0.838]
[1720677304863,0.55,3106.2,3106.0,0.838]
[1720677305188,0.55,3106.3,3106.0,0.838]
[1720677305354,0.98670857,3106.2,3106.0,0.838]
[1720677305553,2.027366,3106.3,3106.0,0.838]
[1720677305783,0.98669592,3106.2,3106.0,0.838]
[1720677305966,2.027366,3106.4,3106.0,0.838]
[1720677306173,1.53663796,3106.3,3106.2,0.838]
[1720677307379,0.55,3106.3,3106.2,0.838]
[1720677307576,1.53660431,3106.4,3106.2,0.838]
[1720677307808,0.98660431,3106.3,3106.2,0.838]
[1720677307962,1.53660431,3106.3,3106.2,0.838]
[1720677310803,0.98663864,3106.3,3106.2,0.838]
[1720677311002,0.98663858,3106.3,3106.2,0.838]
[1720677313936,0.33700885,3106.7,3106.2,0.838]
[1720677313937,2.02720143,3106.6,3106.2,0.838]
[1720677314148,0.55,3106.5,3106.4,0.838]
[1720677314351,2.027394,3106.5,3106.4,0.838]
[1720677314501,3.56394373,3106.5,3106.4,0.838]
[1720677314951,1.53654973,3106.5,3106.4,0.838]
[1720677315330,3.56422343,3106.5,3106.4,0.838]
[1720677315517,3.56422343,3106.5,3106.2,0.838]
[1720677315715,0.98664132,3106.4,3106.2,0.838]
[1720677315931,0.98664132,3106.3,3106.2,0.838]
[1720677316460,0.98664132,3106.3,3106.0,0.838]
[1720677316461,3.01422343,3106.3,3106.0,0.838]
[1720677316623,0.98664132,3106.2,3106.0,0.838]
[1720677316811,0.98671157,3106.1,3106.0,0.838]
[1720677317224,0.98670362,3106.1,3106.0,0.838]
[1720677317572,2.02817199,3106.3,3106.0,0.838]
[1720677317754,1.5367322,3106.2,3105.6,7.3437326]
[1720677318049,1.5367322,3106.2,3105.9,0.838]
[1720677318050,0.9867322,3106.1,3105.9,0.838]
[1720677318418,3.01522024,3106.1,3105.9,0.838]
[1720677318619,0.55,3106.2,3105.9,0.838]
[1720677318620,0.9867322,3106.0,3105.9,0.838]
[1720677318835,3.01522024,3106.1,3105.9,0.838]
[1720677319130,0.9867322,3106.0,3105.9,0.838]
[1720677319345,3.01522024,3106.1,3105.9,0.838]
[1720677319544,0.9867322,3106.0,3105.9,0.838]
[1720677320258,2.57848804,3106.2,3105.9,0.838]
[1720677320551,2.4252,3106.6,3105.3,2.4881]
[1720677320552,0.98666214,3106.1,3105.3,2.4881]
[1720677320725,2.02848804,3106.3,3106.1,2.4881]
[1720677321049,2.02930444,3106.3,3106.2,0.838]
[1720677321205,3.01595288,3106.3,3106.2,0.838]
[1720677321424,3.01594384,3106.3,3106.2,0.838]
[1720677321623,0.98664479,3106.3,3106.2,0.838]
[1720677323739,0.98658344,3106.3,3106.2,0.838]
[1720677324152,1.89317169,3106.3,3105.6,2.4881]
[1720677324457,2.03028879,3106.1,3105.9,0.838]
[1720677324754,0.98672048,3106.0,3105.9,0.838]
[1720677324976,3.01700927,3106.0,3105.9,0.838]
[1720677325135,0.98672048,3106.0,3105.9,0.838]
[1720677327652,0.55,3106.5,3105.9,0.838]
[1720677327851,2.03131131,3106.1,3105.9,0.838]
[1720677328049,0.9867135,3106.0,3105.9,0.838]
[1720677330866,0.98671674,3106.0,3105.9,0.838]
[1720677331069,0.55,3106.8,3105.9,0.838]
[1720677331383,2.0313972,3106.0,3105.9,0.838]
[1720677331674,3.01811738,3106.0,3105.9,0.838]
[1720677333881,0.98672018,3106.0,3105.6,0.838]
[1720677334182,2.03170828,3105.7,3105.6,0.838]
[1720677334337,3.01842846,3105.7,3105.6,0.838]
[1720677334635,3.56849144,3105.7,3105.6,0.838]
[1720677335047,1.5369465,3105.7,3105.6,0.838]
[1720677335273,1.5369465,3105.7,3105.5,7.3437326]
[1720677335274,2.17712258,3105.7,3105.5,7.3437326]
[1720677335578,1.5369465,3105.6,3105.5,7.3437326]
[1720677337177,1.5369465,3105.6,3104.5,0.16348303]
[1720677337178,2.2827,3105.5,3104.5,0.16348303]
[1720677337352,2.03114117,3105.0,3104.6,0.838]
[1720677337548,2.03114117,3105.0,3103.9,2.3368]
[1720677337549,0.9869465,3104.9,3103.9,2.3368]
[1720677337758,0.98728779,3104.8,3104.6,0.838]
[1720677337953,0.98728779,3104.7,3104.6,0.838]
[1720677338276,0.98728779,3104.8,3104.6,0.838]
[1720677338771,2.03114117,3105.0,3104.6,0.838]
[1720677338972,0.98726811,3104.9,3104.8,0.838]
[1720677340357,0.20311412,3105.0,3104.8,0.838]
[1720677340560,2.03114117,3105.2,3104.8,0.838]
[1720677340760,1.53727915,3105.1,3104.8,0.838]
[1720677340963,0.98727915,3105.0,3104.8,0.838]
[1720677341162,0.55,3105.1,3104.8,0.838]
[1720677341352,0.98727935,3105.0,3104.8,0.838]
[1720677341553,0.55,3105.1,3104.8,0.838]
[1720677341755,0.98728902,3105.0,3104.8,0.838]
[1720677342048,0.80771396,3105.1,3104.8,0.838]
[1720677342945,2.41715466,3105.4,3105.0,0.838]
[1720677343143,2.02713959,3105.6,3105.3,0.838]
[1720677343442,0.98712128,3105.5,3105.3,0.838]
[1720677343755,0.98712128,3105.4,3105.3,0.838]
[1720677344166,2.02713959,3105.6,3105.3,0.838]
[1720677344364,0.98711534,3105.5,3105.3,0.838]
[1720677344570,0.50602157,3105.6,3105.3,0.838]
[1720677344774,1.53710474,3105.5,3105.3,0.838]
[1720677345072,0.55,3105.5,3105.3,0.838]
[1720677346501,2.02530035,3106.0,3105.3,0.838]
[1720677346697,1.53696723,3105.9,3105.5,0.838]
[1720677346898,2.02530035,3106.0,3105.5,0.838]
[1720677347200,2.02530035,3106.2,3105.7,0.838]
[1720677347499,0.98683676,3106.1,3105.7,0.838]
[1720677347660,2.02530035,3106.2,3105.7,0.838]
[1720677347860,3.21401422,3106.1,3105.7,0.838]
[1720677348062,3.21401422,3106.1,3104.6,3.0]
[1720677348063,2.4177,3105.9,3104.6,3.0]
[1720677348262,2.4177,3105.9,3105.3,0.838]
[1720677348263,1.53702424,3105.8,3105.3,0.838]
[1720677348464,0.98702772,3105.7,3105.3,0.838]
[1720677348711,0.55,3105.6,3104.7,2.012]
[1720677348860,2.57463106,3105.8,3104.8,0.5012]
[1720677349062,0.98705684,3105.7,3104.8,3.5012]
[1720677349309,0.55,3105.6,3104.8,3.5012]
[1720677349465,0.55,3105.8,3104.8,3.5012]
[1720677349669,0.55,3105.8,3104.9,2.4984]
[1720677350009,0.98703828,3105.7,3105.0,0.59996]
[1720677350315,0.55,3105.6,3105.0,0.59996]
[1720677350602,0.55,3105.8,3105.0,0.59996]
[1720677350797,0.55,3105.9,3105.0,0.59996]
[1720677351001,0.55,3106.0,3105.0,0.59996]
[1720677351199,0.55,3106.0,3105.1,0.309836]
[1720677351502,2.02455065,3106.1,3105.1,0.309836]
[1720677351710,1.53689263,3106.0,3105.1,0.309836]
[1720677351871,0.55,3106.0,3105.1,0.309836]
[1720677352508,0.55,3106.1,3105.1,0.309836]
[1720677352969,2.02455065,3106.5,3105.5,2.012]
[1720677353170,2.02455065,3106.7,3105.7,2.4984]
[1720677353509,0.98659135,3106.6,3105.7,2.4984]
[1720677353706,2.02455065,3106.8,3105.7,2.4984]
[1720677353919,0.98650862,3106.7,3105.9,2.012]
[1720677354216,2.02455065,3107.1,3106.0,0.2012]
[1720677354372,0.98643255,3107.0,3106.0,0.2012]
[1720677354571,2.02364792,3107.2,3106.0,0.2012]
[1720677354912,3.01006965,3107.1,3106.0,0.2012]
[1720677355070,0.98642173,3107.0,3106.1,0.22132]
[1720677355269,0.55,3106.9,3106.1,0.22132]
[1720677355683,0.55,3107.0,3106.1,0.22132]
[1720677355884,0.55,3107.0,3106.0,0.2012]
[1720677356108,0.98649911,3106.9,3106.0,0.2012]
[1720677356405,0.55,3107.0,3106.0,0.2012]
[1720677356406,0.55,3106.8,3106.0,0.2012]
[1720677356606,0.55,3107.0,3106.0,0.2012]
[1720677357230,2.02364792,3107.3,3106.1,2.2704]
[1720677357372,2.36092258,3107.6,3106.3,2.012]
[1720677357373,2.02364792,3107.6,3106.3,2.012]
[1720677357710,2.4762,3107.9,3106.7,2.012]
[1720677357866,3.008512,3107.8,3106.8,2.2704]
[1720677358065,0.98610503,3107.7,3106.8,2.2704]
[1720677358271,2.02240697,3107.9,3106.8,2.2704]
[1720677358502,2.02240697,3108.3,3107.1,2.012]
[1720677358714,2.02740697,3108.4,3107.1,2.012]
[1720677359009,0.98590051,3108.3,3107.1,2.012]
[1720677359182,2.02740697,3108.4,3107.2,0.2012]
[1720677359183,0.30133075,3108.2,3107.2,0.2012]
[1720677359703,0.005,3108.4,3107.2,0.2012]
[1720677360893,0.005,3108.4,3107.3,2.2704]
[1720677361769,0.005,3108.4,3107.5,2.012]
[1720677364507,0.005,3108.4,3107.6,2.4966]
[1720677366990,0.005,3108.4,3107.9,2.012]
[1720677367188,0.005,3108.4,3108.0,0.2012]
[1720677367808,0.3370788,3108.3,3108.0,0.2012]
[1720677369510,0.3370788,3108.3,3108.1,2.4973]
[1720677374191,0.3370788,3108.3,3107.7,2.2939]
[1720677379553,0.55,3108.2,3107.3,2.3729]
[1720677379707,0.55,3108.2,3107.4,0.99178326]
[1720677380392,0.3370788,3108.3,3107.5,2.012]
[1720677381938,0.3370788,3108.3,3107.9,2.012]
[1720677384425,0.3370788,3108.3,3107.7,3.0]
[1720677384643,0.3370788,3108.3,3107.6,2.318]
[1720677384644,0.3370788,3108.3,3107.6,5.318]
[1720677384816,0.55,3108.2,3107.2,7.5449326]
[1720677385203,0.55,3108.2,3107.3,2.43430326]
[1720677385901,0.3370788,3108.3,3107.5,2.012]
[1720677386103,0.3370788,3108.3,3107.6,2.3261]
[1720677387935,0.3370788,3108.3,3107.4,2.012]
[1720677388139,0.55,3108.2,3107.3,2.2519]
[1720677388341,0.63044409,3108.2,3107.0,7.2639]
[1720677388640,0.55,3108.2,3107.1,1.46076326]
[1720677389317,0.55,3108.2,3107.0,4.2639]
[1720677391835,0.5,3108.2,3107.0,4.2639]
[1720677392151,0.3370788,3108.3,3107.0,4.2639]
[1720677392152,0.3370788,3108.3,3107.4,2.012]
[1720677393478,0.2870788,3108.3,3107.4,2.012]
[1720677394043,0.55,3108.2,3107.4,2.012]
[1720677394259,0.55,3108.2,3107.5,0.2012]
[1720677394465,0.2870788,3108.3,3107.5,0.2012]
[1720677394842,0.2870788,3108.3,3107.6,2.3304]
[1720677400144,0.2870788,3108.3,3107.8,2.012]
[1720677406797,0.0025,3108.0,3107.8,2.012]
[1720677407099,0.0025,3108.0,3107.9,0.5012]
[1720677407806,0.0025,3108.0,3107.9,2.9599]
[1720677414516,0.0025,3108.0,3107.9,0.5012]
[1720677415548,0.0025,3108.0,3107.7,3.0]
[1720677415754,0.0025,3108.0,3107.5,3.0]
[1720677415900,0.0025,3108.0,3107.4,3.0]
[1720677416240,0.33697715,3107.9,3107.4,3.0]
[1720677416899,0.33697715,3107.9,3107.3,3.0]
[1720677417100,0.33697715,3107.9,3107.2,2.299079]
[1720677417101,0.33697715,3107.9,3107.2,2.012]
[1720677417415,0.98591931,3107.8,3107.2,2.012]
[1720677417615,0.33697715,3107.9,3107.2,2.012]
[1720677417854,0.98598478,3107.8,3107.2,2.012]
[1720677418016,2.36449055,3107.9,3107.2,2.012]
[1720677418365,0.98597726,3107.8,3107.2,2.012]
[1720677418515,2.36449055,3107.9,3107.2,2.012]
[1720677418715,0.98598089,3107.8,3107.2,2.012]
[1720677418930,2.36449055,3107.9,3107.2,2.012]
[1720677419143,0.98597712,3107.8,3107.2,2.012]
[1720677419357,2.36436878,3107.9,3107.2,2.012]
[1720677419541,0.9859824,3107.8,3107.2,2.012]
[1720677419749,2.36436878,3107.9,3107.2,2.012]
[1720677419948,0.98598593,3107.8,3107.2,2.012]
[1720677420151,2.36433046,3107.9,3107.2,2.012]
[1720677420442,0.98598638,3107.8,3107.2,2.012]
[1720677420614,2.36427138,3107.9,3107.2,2.012]
[1720677420819,0.98599984,3107.8,3107.2,2.012]
[1720677421056,0.33697715,3107.9,3107.2,2.5132]
[1720677422459,0.33697715,3107.9,3107.6,2.012]
[1720677423144,0.33697715,3107.9,3107.3,3.0]
[1720677426744,0.33697715,3107.9,3107.6,2.012]
[1720677428579,0.0025,3108.0,3107.6,2.348977]
[1720677428913,0.0025,3108.0,3107.7,0.5348977]
[1720677429119,0.0025,3108.0,3107.7,3.5348977]
[1720677433506,0.0025,3108.0,3107.8,2.2863]
[1720677433711,0.0025,3108.0,3107.8,5.2863]
[1720677438525,0.0025,3108.0,3107.8,3.0]
[1720677438825,0.0025,3108.0,3107.9,0.35348977]
[1720677439031,0.0025,3108.0,3107.7,0.5348977]
[1720677439199,0.0025,3108.0,3107.6,2.012]
[1720677441006,0.0025,3108.0,3107.3,3.0]
[1720677441523,0.0025,3108.0,3107.2,2.5132]
[1720677442602,0.0025,3108.0,3107.3,3.0]
[1720677443716,0.0025,3108.0,3107.2,2.5132]
[1720677443921,0.0025,3108.0,3107.3,0.25132]
[1720677445732,0.0025,3108.0,3107.3,3.25132]
[1720677447629,0.0025,3108.0,3107.6,4.3109]
[1720677449588,0.0025,3108.0,3107.6,2.012]
[1720677451716,2.3206,3107.9,3107.3,3.25132]
[1720677451917,2.3206,3107.9,3107.4,0.576452]
[1720677454428,2.3206,3107.9,3107.3,3.0]
[1720677454628,2.3206,3107.9,3107.2,2.012]
[1720677457059,0.9859359,3107.8,3107.2,2.012]
[1720677457332,2.3206,3107.9,3107.2,2.012]
[1720677457533,1.06640265,3107.8,3107.2,2.012]
[1720677457697,2.3206,3107.9,3107.2,2.012]
[1720677457899,0.98594546,3107.8,3107.2,2.012]
[1720677458134,2.75557891,3107.9,3107.2,2.012]
[1720677458309,0.55,3107.8,3107.2,2.012]
[1720677459433,2.3206,3107.9,3107.2,2.012]
[1720677460144,0.0025,3108.0,3107.2,4.4519]
[1720677461274,0.0025,3108.0,3107.2,2.012]
[1720677463343,3.45394861,3107.9,3107.2,2.012]
[1720677463551,1.10632551,3107.8,3107.2,2.012]
[1720677464837,3.13267888,3107.8,3107.2,2.012]
[1720677465043,3.13267888,3107.8,3106.8,9.3557326]
[1720677465044,2.02635337,3107.7,3106.8,9.3557326]
[1720677465248,0.55,3107.6,3106.8,2.012]
[1720677465488,0.91826789,3107.6,3106.8,2.012]
[1720677467095,2.34766154,3107.5,3106.3,7.3437326]
[1720677467386,2.02599292,3107.3,3106.3,7.3437326]
[1720677467548,0.55,3107.2,3106.3,7.3437326]
[1720677467749,0.87064662,3107.2,3106.3,7.3437326]
[1720677468183,2.02599292,3107.4,3106.3,7.3437326]
[1720677468380,4.29319292,3107.5,3106.5,2.012]
[1720677468593,0.55,3107.4,3106.5,2.012]
[1720677470294,0.55,3107.4,3106.6,2.4017]
[1720677470814,0.55,3107.4,3107.2,0.837]
[1720677474900,0.31542561,3107.3,3106.1,3.0]
[1720677475126,0.55,3107.2,3106.9,0.837]
[1720677477373,2.60425614,3107.5,3106.9,0.837]
[1720677477579,0.55,3107.4,3106.9,0.837]
[1720677477794,2.2738,3107.3,3106.4,7.3437326]
[1720677478096,0.55,3107.2,3106.9,0.837]
[1720677478805,0.63046612,3107.2,3106.7,0.837]
[1720677478977,0.29042661,3107.1,3106.7,0.837]
[1720677479159,0.63047342,3107.0,3106.7,0.837]
[1720677479590,0.63047342,3107.0,3106.5,0.837]
[1720677480221,0.55,3107.0,3106.4,7.3437326]
[1720677480381,0.55,3107.0,3106.7,0.837]
[1720677480889,0.63047461,3107.0,3106.5,0.837]
[1720677481409,2.3024,3106.8,3106.5,0.837]
[1720677481608,0.63047984,3106.7,3106.5,0.837]
[1720677482006,0.55,3106.7,3106.5,0.837]
[1720677482316,0.63047967,3106.7,3106.5,0.837]
[1720677483573,0.55,3106.7,3106.5,0.837]
[1720677484313,0.63047948,3106.7,3106.5,0.837]
[1720677485017,0.55,3106.7,3106.5,0.837]
[1720677493236,0.55,3106.7,3105.7,3.0]
[1720677493404,0.55,3106.7,3106.3,0.837]
[1720677494437,0.55,3106.7,3106.5,0.837]
[1720677494621,0.3370733,3107.0,3106.5,0.837]
[1720677494940,4.39426728,3108.1,3107.0,2.348]
[1720677495144,2.36361183,3108.4,3107.9,0.837]
[1720677495145,2.02666728,3108.4,3107.9,0.837]
[1720677495291,0.005,3108.4,3107.9,0.837]
[1720677495639,0.33699508,3108.3,3107.9,0.837]
[1720677496864,0.33699508,3108.3,3108.1,0.837]
[1720677498511,0.33699508,3108.3,3107.2,3.0]
[1720677498712,0.33699508,3108.3,3107.6,2.009]
[1720677500057,0.33699508,3108.3,3107.7,2.2835]
[1720677512837,0.33699508,3108.3,3107.6,2.009]
[1720677518204,0.08044165,3108.2,3107.6,2.009]
[1720677518405,0.08044165,3108.2,3107.4,2.3363]
[1720677518609,0.26677367,3108.1,3107.4,2.3363]
[1720677518913,0.26677367,3108.1,3107.8,0.837]
[1720677519366,0.26677367,3108.1,3107.1,2.3363]
[1720677519574,0.26677367,3108.1,3107.5,0.837]
[1720677519575,0.08045275,3108.0,3107.5,0.837]
[1720677520414,0.41748431,3108.0,3107.5,0.837]
[1720677521512,0.41748431,3108.0,3107.7,0.837]
[1720677521813,0.33703156,3108.0,3107.7,0.837]
[1720677522002,0.70545736,3108.0,3107.7,0.837]
[1720677524702,0.3684258,3108.0,3107.7,0.837]
[1720677524926,0.26677367,3108.1,3107.7,0.837]
[1720677532533,3.0,3108.2,3107.9,0.837]
[1720677532723,0.005,3108.4,3107.9,0.837]
[1720677535264,0.005,3108.4,3107.6,2.3366]
[1720677535464,0.005,3108.4,3108.3,0.837]
[1720677535936,0.005,3108.4,3108.1,0.837]
[1720677536327,0.005,3108.4,3108.0,0.837]
[1720677539154,2.02619481,3108.4,3108.0,0.837]
[1720677539951,0.005,3108.4,3108.0,0.837]
[1720677540154,2.03067493,3108.4,3108.0,0.837]
[1720677540543,2.02567493,3108.3,3108.0,0.837]
[1720677540738,0.44439623,3108.4,3108.0,0.837]
[1720677540739,2.02567493,3108.2,3108.0,0.837]
[1720677542336,2.02567493,3108.1,3107.2,5.3847]
[1720677542539,2.02728115,3108.0,3107.5,0.837]
[1720677542736,2.02728115,3107.9,3107.5,0.837]
[1720677543182,2.02728115,3107.8,3107.5,0.837]
[1720677543800,2.02728115,3107.7,3107.5,0.837]
[1720677545407,0.28881234,3108.2,3107.5,0.837]
[1720677545408,2.02728115,3107.8,3107.5,0.837]
[1720677545555,2.02728115,3107.8,3107.7,0.837]
[1720677545763,3.23824306,3108.4,3107.7,0.837]
[1720677545764,0.44439623,3108.4,3107.7,0.837]
[1720677546080,2.02687184,3107.9,3107.7,0.837]
[1720677546489,2.02687184,3108.0,3107.7,0.837]
[1720677547516,2.02687184,3108.1,3107.7,0.32839]
[1720677547808,2.36968382,3108.4,3108.0,0.837]
[1720677547809,2.02687184,3108.2,3108.0,0.837]
[1720677548168,2.02687184,3108.1,3108.0,0.837]
[1720677549290,2.02709603,3108.1,3108.0,0.837]
[1720677549700,2.02716273,3108.1,3108.0,0.837]
[1720677550014,2.02716273,3108.2,3108.0,0.837]
[1720677551122,2.02716273,3108.1,3108.0,0.837]
[1720677551982,2.02744139,3108.1,3108.0,0.837]
[1720677552288,2.23018553,3108.1,3108.0,0.837]
[1720677552512,2.02744139,3108.2,3108.0,0.837]
[1720677552708,0.005,3108.4,3108.0,0.837]
[1720677552884,2.02753147,3108.2,3108.0,0.837]
[1720677553080,2.02753147,3108.1,3107.5,2.4469]
[1720677553302,2.02753147,3108.1,3108.0,0.837]
[1720677553506,2.37045339,3108.4,3108.0,0.837]
[1720677553507,2.02753147,3108.2,3108.0,0.837]
[1720677555120,2.02753147,3108.1,3108.0,0.837]
[1720677556145,0.005,3108.4,3108.0,0.837]
[1720677556328,2.02839855,3108.1,3108.0,0.837]
[1720677556648,2.02839855,3108.2,3108.0,0.837]
[1720677558204,2.02839855,3108.2,3107.9,2.4119]
[1720677558430,2.02839855,3108.2,3108.1,0.837]
[1720677559165,2.02839855,3108.3,3108.1,0.837]
[1720677559743,2.02839855,3108.3,3107.9,2.4119]
[1720677559744,2.02836895,3108.3,3107.9,2.4119]
[1720677559973,2.02836895,3108.1,3107.9,3.2489]
[1720677560134,2.02836895,3108.1,3107.9,0.837]
[1720677560455,2.02836895,3108.0,3107.9,0.837]
[1720677560637,2.02836895,3108.1,3107.9,0.837]
[1720677562976,0.2033369,3108.2,3107.9,0.837]
[1720677563268,2.02854063,3108.1,3107.9,0.837]
[1720677566386,2.44707072,3108.2,3107.7,0.837]
[1720677566584,2.02885426,3107.9,3107.3,2.2922]
[1720677566878,0.08044784,3107.8,3107.3,2.2922]
[1720677567074,2.02885426,3107.6,3107.3,0.837]
[1720677567241,2.02885426,3107.4,3107.3,0.837]
[1720677567438,2.10931,3107.5,3107.3,0.837]
[1720677567761,2.02885426,3107.4,3107.0,2.2922]
[1720677568062,2.02885426,3107.3,3107.0,2.2922]
[1720677568235,2.02885426,3107.4,3107.2,0.837]
[1720677568467,2.02885426,3107.4,3106.2,12.46]
[1720677568468,2.4298,3107.3,3106.2,2.3107]
[1720677568698,2.02909395,3107.0,3106.8,0.837]
[1720677568900,2.02909395,3106.9,3106.8,0.837]
[1720677569302,2.02909395,3107.0,3106.8,0.837]
[1720677569667,2.02823268,3107.0,3106.8,0.837]
[1720677570408,2.02823268,3107.1,3106.8,0.837]
[1720677570569,2.02823268,3107.1,3107.0,0.837]
[1720677571192,2.02823268,3107.2,3107.0,0.837]
[1720677571702,2.02823268,3107.3,3107.0,0.837]
[1720677572511,2.02823268,3107.4,3107.2,0.837]
[1720677573011,3.0,3107.6,3107.2,0.837]
[1720677573180,2.02619781,3107.4,3107.2,0.837]
[1720677574366,2.02619781,3107.5,3107.2,0.837]
[1720677574566,5.02619781,3107.6,3107.2,0.837]
[1720677574800,2.52881759,3107.6,3107.2,0.837]
[1720677574978,2.02619781,3107.5,3107.2,0.837]
[1720677576396,0.50261978,3107.6,3107.2,0.837]
[1720677576603,2.02556144,3107.5,3107.2,0.837]
[1720677578391,2.02556144,3107.4,3107.0,0.837]
[1720677578592,0.210602,3107.3,3107.0,0.837]
[1720677578929,2.23616344,3107.3,3107.0,0.837]
[1720677579448,2.3396,3107.1,3106.0,7.3437326]
[1720677579610,2.02556144,3106.9,3106.1,0.837]
[1720677579794,0.08048239,3106.8,3106.1,0.837]
[1720677579994,2.02551388,3106.6,3106.1,0.837]
[1720677580236,2.94636392,3106.9,3106.1,0.837]
[1720677580237,0.08048238,3106.5,3106.1,0.837]
[1720677581232,2.02551388,3106.7,3106.1,0.837]
[1720677581233,2.10600325,3106.7,3106.1,0.837]
[1720677581528,2.02551388,3106.6,3106.1,0.837]
[1720677581832,2.23611421,3106.6,3106.1,0.837]
[1720677582132,2.02551388,3106.9,3106.5,0.837]
[1720677582317,5.02551388,3107.0,3106.5,0.837]
[1720677582525,2.02551388,3107.1,3106.5,0.837]
[1720677583019,5.02551388,3107.1,3106.7,0.837]
[1720677583219,5.02302804,3107.1,3106.7,0.837]
[1720677583443,3.578363,3107.1,3106.7,0.837]
[1720677584571,3.578363,3107.1,3106.0,2.011]
[1720677584853,3.0,3107.1,3106.0,2.011]
[1720677585061,2.02274432,3107.5,3106.5,2.2613]
[1720677585264,2.02274432,3107.7,3106.5,2.2613]
[1720677585435,2.02274432,3107.7,3106.6,0.42723]
[1720677585972,4.45724431,3107.8,3106.6,0.42723]
[1720677586327,0.55,3107.7,3106.6,0.42723]
[1720677586631,5.57235446,3107.7,3106.6,0.42723]
[1720677586852,3.0,3107.7,3106.6,0.42723]
[1720677587023,5.02235446,3107.7,3106.7,0.268853]
[1720677588323,5.02235446,3107.7,3106.5,2.2613]
[1720677589750,3.0,3107.7,3106.5,2.2613]
[1720677589942,2.02252028,3107.7,3106.5,2.2613]
[1720677590142,5.02252028,3107.7,3106.5,2.2613]
[1720677593384,5.02232398,3107.7,3106.5,2.2613]
[1720677593588,0.5572324,3107.6,3106.6,0.52613]
[1720677594089,2.57955638,3107.6,3106.6,0.52613]
[1720677594659,2.57955638,3107.6,3106.7,2.2587]
[1720677595051,0.5572324,3107.6,3106.7,2.2587]
[1720677595264,2.57955638,3107.6,3106.7,2.2587]
[1720677595457,2.57955638,3107.6,3106.7,2.537183]
[1720677595656,0.5572324,3107.6,3106.7,2.537183]
[1720677595875,2.57955638,3107.6,3106.7,2.537183]
[1720677596091,0.5572324,3107.6,3106.7,2.537183]
[1720677596259,2.57955638,3107.6,3106.7,2.2587]
[1720677596768,2.57997368,3107.6,3106.7,2.2587]
[1720677597157,2.66043948,3107.6,3106.7,2.2587]
[1720677597364,5.04194128,3107.5,3106.7,2.2587]
[1720677597658,0.55991737,3107.4,3106.7,2.2587]
[1720677598562,2.58265865,3107.4,3106.7,2.2587]
[1720677599895,0.55991737,3107.4,3106.7,2.2587]
[1720677600315,2.10368071,3107.4,3106.7,2.2587]
[1720677600491,2.57320977,3107.3,3106.7,2.2587]
[1720677600650,2.02320977,3107.1,3106.7,2.2587]
[1720677601365,0.55,3107.3,3106.7,2.2587]
[1720677601366,2.02320977,3107.2,3106.7,2.2587]
[1720677602226,2.02320977,3107.4,3106.7,2.2587]
[1720677602497,3.89425536,3107.6,3106.7,2.2587]
[1720677602498,3.0,3107.5,3106.7,2.48457]
[1720677602787,3.0,3107.5,3106.7,2.2587]
[1720677602788,2.02351735,3107.5,3106.7,2.2587]
[1720677603093,2.02351735,3107.4,3106.7,2.2587]
[1720677603266,5.02351735,3107.4,3106.7,2.2587]
[1720677603507,3.0,3107.4,3106.7,2.2587]
[1720677603679,2.36054031,3107.6,3106.7,2.48457]
[1720677604188,2.02351735,3107.5,3106.7,2.48457]
[1720677604753,2.02351735,3107.5,3107.0,0.838]